fUSD/lending_fUSD_20250221
["ID","MTS","AMOUNT","RATE_DAILY","PERIOD"]
[353992515,1740175856475,-500.0,0.0001169,2]
[353992516,1740175856484,-500.0,0.0001169,2]
[353992517,1740175856494,-877.35,0.0001169,2]
[353992518,1740175856503,-1059.0,0.0001169,2]
[353992519,1740175856513,-1371.99,0.0001169,2]
[353992520,1740175856522,-1195.87,0.0001169,2]
[353992521,1740175856531,-500.0,0.0001169,2]
[353992522,1740175856541,-1159.59,0.0001169,2]
[353992523,1740175856550,-500.0,0.0001169,2]
[353992524,1740175856559,-500.0,0.0001169,2]
[353992525,1740175856569,-716.76,0.0001169,2]
[353992526,1740175856579,-500.0,0.0001169,2]
[353992527,1740175856591,-500.0,0.0001169,2]
[353992528,1740175856607,-2524.55,0.0001169,2]
[353992529,1740175856619,-500.0,0.0001169,2]
[353992530,1740175856630,-500.0,0.0001169,2]
[353992531,1740175856638,-500.0,0.00011691,2]
[353992532,1740175856648,-278.33652726,0.00011692,3]
[353992533,1740175856658,-43241.84765239,0.00011692,3]
[353992534,1740175856668,-500.0,0.00011692,2]
[353992535,1740175856677,-500.0,0.00011692,2]
[353992536,1740175856686,-500.0,0.00011692,2]
[353992537,1740175856697,-500.0,0.00011692,2]
[353992538,1740175856706,-500.0,0.00011692,2]
[353992539,1740175856716,-500.0,0.00011692,2]
[353992540,1740175856725,-500.0,0.00011692,2]
[353992541,1740175856735,-378.26,0.00011692,2]
[353992542,1740175856744,-587.93,0.00011692,2]
[353992543,1740175856754,-546.63,0.00011692,2]
[353992544,1740175856763,-500.0,0.00011692,2]
[353992545,1740175856773,-500.0,0.00011692,2]
[353992546,1740175856782,-515.89,0.00011692,2]
[353992547,1740175856791,-579.03,0.00011692,2]
[353992548,1740175856800,-500.0,0.00011692,2]
[353992549,1740175856809,-500.0,0.00011692,2]
[353992550,1740175856818,-644.72,0.00011692,2]
[353992551,1740175856827,-500.0,0.00011692,2]
[353992552,1740175856836,-712.4,0.00011692,2]
[353992553,1740175856845,-649.39,0.00011692,2]
[353992554,1740175856854,-500.0,0.00011692,2]
[353992555,1740175856863,-1563.0,0.00011692,2]
[353992556,1740175856873,-500.0,0.00011692,2]
[353992557,1740175856883,-1053.07,0.00011692,2]
[353992558,1740175856891,-1338.11,0.00011692,2]
[353992559,1740175856901,-587.87080261,0.00011692,2]
[353992560,1740175856910,-1204.61,0.00011692,2]
[353992561,1740175856920,-516.44,0.00011692,2]
[353992562,1740175856929,-524.75,0.00011692,2]
[353992563,1740175856939,-1032.03,0.00011692,2]
[353992564,1740175856948,-500.0,0.00011692,2]
[353992565,1740175856958,-500.0,0.00011692,2]
[353992566,1740175856967,-500.0,0.00011692,2]
[353992567,1740175856976,-500.0,0.00011692,2]
[353992568,1740175856985,-500.0,0.00011692,2]
[353992569,1740175856994,-768.2,0.00011692,2]
[353992570,1740175857003,-500.0,0.00011692,2]
[353992571,1740175857013,-785.25,0.00011692,2]
[353992572,1740175857022,-838.82,0.00011692,2]
[353992573,1740175857031,-1010.76,0.00011692,2]
[353992574,1740175857040,-500.0,0.00011692,2]
[353992575,1740175857049,-2224.65,0.00011692,2]
[353992576,1740175857058,-500.0,0.00011692,2]
[353992577,1740175857068,-500.0,0.00011692,2]
[353992578,1740175857077,-500.0,0.00011692,2]
[353992579,1740175857086,-557.6,0.00011692,2]
[353992580,1740175857095,-500.0,0.00011692,2]
[353992581,1740175857104,-500.0,0.00011692,2]
[353992582,1740175857114,-500.0,0.00011692,2]
[353992583,1740175857125,-500.0,0.00011692,2]
[353992584,1740175857134,-364.21,0.00011692,2]
[353992585,1740175857144,-1000.0,0.00011713,2]
[353992586,1740175857153,-987.27,0.00011726,2]
[353992587,1740175857162,-150.0,0.00011726,2]
[353992588,1740175857171,-439.29,0.00011726,2]
[353992589,1740175857180,-150.0,0.00011732,2]
[353992590,1740175857189,-150.0,0.00011744,2]
[353992591,1740175857199,-3734.10983442,0.00011766,2]
[353992592,1740175857208,-840.36,0.00011772,2]
[353992593,1740175857217,-604.86,0.00011772,2]
[353992594,1740175857227,-550.99,0.00011772,2]
[353992595,1740175857235,-456.441457,0.00011772,2]
[353992596,1740175857244,-505.12,0.00011772,2]
[353992597,1740175857254,-1301.04,0.00011772,2]
[353992598,1740175857263,-660.858377,0.00011772,2]
[353992599,1740175857273,-731.38,0.00011772,2]
[353992600,1740175857282,-500.0,0.00011772,2]
[353992601,1740175857291,-643.93,0.00011772,2]
[353992602,1740175857299,-772.23,0.00011772,2]
[353992603,1740175857309,-770.4,0.00011772,2]
[353992604,1740175857320,-1037.35,0.00011772,2]
[353992605,1740175857329,-500.0,0.00011772,2]
[353992606,1740175857339,-761.15,0.00011772,2]
[353992607,1740175857348,-694.42,0.00011772,2]
[353992608,1740175857358,-999.84,0.00011772,2]
[353992609,1740175857367,-2978.62,0.00011772,2]
[353992610,1740175857377,-531.77,0.00011772,2]
[353992611,1740175857386,-1077.31,0.00011772,2]
[353992612,1740175857395,-1338.15,0.00011772,2]
[353992613,1740175857404,-500.0,0.00011772,2]
[353992614,1740175857413,-999.03,0.00011772,2]
[353992615,1740175857421,-772.25,0.00011772,2]
[353992616,1740175857431,-687.87,0.00011772,2]
[353992617,1740175857441,-798.38,0.00011772,2]
[353992618,1740175857450,-1330.6,0.00011772,2]
[353992619,1740175857467,-580.79,0.00011772,2]
[353992620,1740175857477,-500.0,0.00011772,2]
[353992621,1740175857486,-1652.61,0.00011772,2]
[353992622,1740175857495,-584.29,0.00011772,2]
[353992623,1740175857504,-500.0,0.00011772,2]
[353992624,1740175857513,-1064.57,0.00011772,2]
[353992625,1740175857521,-1257.4,0.00011772,2]
[353992626,1740175857530,-617.67,0.00011772,2]
[353992627,1740175857540,-1008.78,0.00011772,2]
[353992628,1740175857549,-934.47,0.00011772,2]
[353992629,1740175857558,-155.439232,0.00011772,2]
[353992630,1740175857568,-607.43,0.00011772,2]
[353992631,1740175857577,-1149.16,0.00011772,2]
[353992632,1740175857587,-557.37,0.00011772,2]
[353992633,1740175857595,-500.0,0.00011772,2]
[353992634,1740175857610,-1059.67,0.00011772,2]
[353992635,1740175857621,-713.85,0.00011772,2]
[353992636,1740175857631,-619.22,0.00011772,2]
[353992637,1740175857640,-500.0,0.00011772,2]
[353992638,1740175857649,-500.0,0.00011772,2]
[353992639,1740175857659,-877.35,0.00011772,2]
[353992640,1740175857667,-1059.0,0.00011772,2]
[353992641,1740175857678,-1371.99,0.00011772,2]
[353992642,1740175857687,-1195.87,0.00011772,2]
[353992643,1740175857697,-500.0,0.00011772,2]
[353992644,1740175857706,-1159.59,0.00011772,2]
[353992645,1740175857715,-500.0,0.00011772,2]
[353992646,1740175857724,-500.0,0.00011772,2]
[353992647,1740175857732,-716.76,0.00011772,2]
[353992648,1740175857741,-500.0,0.00011772,2]
[353992649,1740175857750,-500.0,0.00011772,2]
[353992650,1740175857759,-2524.55,0.00011772,2]
[353992651,1740175857769,-500.0,0.00011772,2]
[353992652,1740175857778,-500.0,0.00011773,2]
[353992653,1740175857787,-500.0,0.00011773,2]
[353992654,1740175857797,-500.0,0.00011773,2]
[353992655,1740175857806,-831.16,0.00011773,2]
[353992656,1740175857815,-672.19,0.00011773,2]
[353992657,1740175857825,-614.03,0.00011773,2]
[353992658,1740175857835,-500.0,0.00011773,2]
[353992659,1740175857844,-586.13,0.00011773,2]
[353992660,1740175857853,-500.0,0.00011773,2]
[353992661,1740175857862,-500.0,0.00011773,2]
[353992662,1740175857872,-500.0,0.00011773,2]
[353992663,1740175857882,-500.0,0.00011773,2]
[353992664,1740175857891,-426.16196899,0.00011773,2]
[353992665,1740175857901,-500.0,0.00011773,2]
[353992666,1740175857910,-500.0,0.00011773,2]
[353992667,1740175857920,-500.0,0.00011773,2]
[353992668,1740175857929,-596.02,0.00011773,2]
[353992669,1740175857939,-907.74,0.00011773,2]
[353992670,1740175857948,-633.15,0.00011773,2]
[353992671,1740175857958,-1053.43,0.00011773,2]
[353992672,1740175857967,-500.0,0.00011773,2]
[353992673,1740175857977,-505.52,0.00011773,2]
[353992674,1740175857986,-640.1,0.00011773,2]
[353992675,1740175857996,-500.0,0.00011773,2]
[353992676,1740175858005,-500.0,0.00011774,2]
[353992677,1740175858014,-500.0,0.00011774,2]
[353992678,1740175858024,-500.0,0.00011774,2]
[353992679,1740175858033,-500.0,0.00011774,2]
[353992680,1740175858042,-500.0,0.00011774,2]
[353992681,1740175858051,-500.0,0.00011774,2]
[353992682,1740175858061,-500.0,0.00011774,2]
[353992683,1740175858071,-587.93,0.00011774,2]
[353992684,1740175858081,-546.63,0.00011774,2]
[353992685,1740175858091,-540.58263143,0.00011774,2]
[353992686,1740175858100,-500.0,0.00011774,2]
[353992687,1740175858109,-515.89,0.00011774,2]
[353992688,1740175858118,-579.03,0.00011774,2]
[353992689,1740175858128,-500.0,0.00011774,2]
[353992690,1740175858137,-500.0,0.00011774,2]
[353992691,1740175858147,-644.72,0.00011774,2]
[353992692,1740175858156,-500.0,0.00011774,2]
[353992693,1740175858166,-712.4,0.00011774,2]
[353992694,1740175858176,-649.39,0.00011774,2]
[353992695,1740175858185,-500.0,0.00011774,2]
[353992696,1740175858195,-1563.0,0.00011774,2]
[353992697,1740175858204,-500.0,0.00011774,2]
[353992698,1740175858214,-1053.07,0.00011774,2]
[353992699,1740175858224,-1338.11,0.00011774,2]
[353992700,1740175858233,-1204.61,0.00011774,2]
[353992701,1740175858243,-516.44,0.00011774,2]
[353992702,1740175858252,-524.75,0.00011774,2]
[353992703,1740175858262,-1032.03,0.00011774,2]
[353992704,1740175858272,-500.0,0.00011774,2]
[353992705,1740175858281,-500.0,0.00011774,2]
[353992706,1740175858291,-500.0,0.00011774,2]
[353992707,1740175858300,-500.0,0.00011774,2]
[353992708,1740175858310,-500.0,0.00011774,2]
[353992709,1740175858321,-768.2,0.00011774,2]
[353992710,1740175858330,-500.0,0.00011774,2]
[353992711,1740175858340,-785.25,0.00011774,2]
[353992712,1740175858350,-838.82,0.00011774,2]
[353992713,1740175858359,-1010.76,0.00011774,2]
[353992714,1740175858368,-274.58646643,0.00011774,2]
[353992715,1740175858377,-2224.65,0.00011774,2]
[353992716,1740175858387,-500.0,0.00011774,2]
[353992717,1740175858397,-500.0,0.00011774,2]
[353992718,1740175858406,-500.0,0.00011774,2]
[353992719,1740175858415,-557.6,0.00011774,2]
[353992720,1740175858425,-500.0,0.00011774,2]
[353992721,1740175858435,-500.0,0.00011774,2]
[353992722,1740175858444,-500.0,0.00011774,2]
[353992723,1740175858454,-500.0,0.00011774,2]
[353992724,1740175858463,-1000.0,0.00011779,2]
[353992725,1740175858473,-150.0,0.0001178,2]
[353992726,1740175858483,-1000.0,0.00011797,2]
[353992727,1740175858493,-800.0,0.000118,4]
[353992728,1740175858502,-150.0,0.00011814,2]
[353992729,1740175858512,-150.0,0.00011817,2]
[353992730,1740175858522,-150.0,0.00011822,2]
[353992731,1740175858532,-840.36,0.00011854,2]
[353992732,1740175858542,-550.99,0.00011854,2]
[353992733,1740175858552,-456.441457,0.00011854,2]
[353992734,1740175858562,-1301.04,0.00011854,2]
[353992735,1740175858571,-660.858377,0.00011854,2]
[353992736,1740175858580,-731.38,0.00011854,2]
[353992737,1740175858590,-643.93,0.00011854,2]
[353992738,1740175858601,-770.4,0.00011854,2]
[353992739,1740175858611,-1037.35,0.00011854,2]
[353992740,1740175858625,-761.15,0.00011854,2]
[353992741,1740175858635,-694.42,0.00011854,2]
[353992742,1740175858644,-999.84,0.00011854,2]
[353992743,1740175858654,-2978.62,0.00011854,2]
[353992744,1740175858665,-531.77,0.00011854,2]
[353992745,1740175858675,-1077.31,0.00011854,2]
[353992746,1740175858685,-500.0,0.00011854,2]
[353992747,1740175858695,-999.03,0.00011854,2]
[353992748,1740175858705,-772.25,0.00011854,2]
[353992749,1740175858714,-687.87,0.00011854,2]
[353992750,1740175858723,-798.38,0.00011854,2]
[353992751,1740175858733,-1330.6,0.00011854,2]
[353992752,1740175858743,-580.79,0.00011854,2]
[353992753,1740175858752,-500.0,0.00011854,2]
[353992754,1740175858761,-1652.61,0.00011854,2]
[353992755,1740175858771,-584.29,0.00011854,2]
[353992756,1740175858780,-500.0,0.00011854,2]
[353992757,1740175858790,-1064.57,0.00011854,2]
[353992758,1740175858799,-1257.4,0.00011854,2]
[353992759,1740175858809,-617.67,0.00011854,2]
[353992760,1740175858818,-1008.78,0.00011854,2]
[353992761,1740175858829,-934.47,0.00011854,2]
[353992762,1740175858842,-607.43,0.00011854,2]
[353992763,1740175858851,-1149.16,0.00011854,2]
[353992764,1740175858861,-557.37,0.00011854,2]
[353992765,1740175858870,-500.0,0.00011854,2]
[353992766,1740175858879,-1059.67,0.00011854,2]
[353992767,1740175858889,-713.85,0.00011854,2]
[353992768,1740175858898,-619.22,0.00011854,2]
[353992769,1740175858908,-500.0,0.00011854,2]
[353992770,1740175858916,-500.0,0.00011854,2]
[353992771,1740175858926,-877.35,0.00011854,2]
[353992772,1740175858936,-1059.0,0.00011854,2]
[353992773,1740175858945,-1371.99,0.00011854,2]
[353992774,1740175858955,-1195.87,0.00011854,2]
[353992775,1740175858964,-500.0,0.00011854,2]
[353992776,1740175858974,-1159.59,0.00011854,2]
[353992777,1740175858984,-500.0,0.00011854,2]
[353992778,1740175858993,-323.04018183,0.00011854,2]
[353992779,1740175859003,-716.76,0.00011854,2]
[353992780,1740175859013,-500.0,0.00011854,2]
[353992781,1740175859021,-500.0,0.00011854,2]
[353992782,1740175859030,-2524.55,0.00011854,2]
[353992783,1740175859040,-500.0,0.00011854,2]
[353992784,1740175859049,-500.0,0.00011854,2]
[353992785,1740175859058,-500.0,0.00011855,2]
[353992786,1740175859067,-500.0,0.00011855,2]
[353992787,1740175859079,-500.0,0.00011855,2]
[353992788,1740175859088,-831.16,0.00011855,2]
[353992789,1740175859097,-672.19,0.00011855,2]
[353992790,1740175859106,-614.03,0.00011855,2]
[353992791,1740175859117,-500.0,0.00011855,2]
[353992792,1740175859126,-586.13,0.00011855,2]
[353992793,1740175859135,-500.0,0.00011855,2]
[353992794,1740175859144,-500.0,0.00011855,2]
[353992795,1740175859153,-500.0,0.00011855,2]
[353992796,1740175859162,-500.0,0.00011855,2]
[353992797,1740175859171,-500.0,0.00011855,2]
[353992798,1740175859181,-500.0,0.00011855,2]
[353992799,1740175859190,-500.0,0.00011855,2]
[353992800,1740175859199,-596.02,0.00011855,2]
[353992801,1740175859209,-907.74,0.00011855,2]
[353992802,1740175859218,-637.76,0.00011855,2]
[353992803,1740175859227,-505.12,0.00011855,2]
[353992804,1740175859237,-500.0,0.00011855,2]
[353992805,1740175859246,-772.23,0.00011855,2]
[353992806,1740175859256,-633.15,0.00011855,2]
[353992807,1740175859265,-500.0,0.00011855,2]
[353992808,1740175859274,-1053.43,0.00011855,2]
[353992809,1740175859286,-500.0,0.00011855,2]
[353992810,1740175859295,-1338.15,0.00011855,2]
[353992811,1740175859305,-505.52,0.00011855,2]
[353992812,1740175859314,-640.1,0.00011855,2]
[353992813,1740175859326,-500.0,0.00011855,2]
[353992814,1740175859335,-500.0,0.00011856,2]
[353992815,1740175859344,-500.0,0.00011856,2]
[353992816,1740175859354,-500.0,0.00011856,2]
[353992817,1740175859363,-500.0,0.00011856,2]
[353992818,1740175859373,-500.0,0.00011856,2]
[353992819,1740175859383,-500.0,0.00011856,2]
[353992820,1740175859392,-500.0,0.00011856,2]
[353992821,1740175859402,-500.0,0.00011856,2]
[353992822,1740175859411,-587.93,0.00011856,2]
[353992823,1740175859421,-546.63,0.00011856,2]
[353992824,1740175859431,-519.85,0.00011856,2]
[353992825,1740175859440,-515.89,0.00011856,2]
[353992826,1740175859449,-579.03,0.00011856,2]
[353992827,1740175859459,-500.0,0.00011856,2]
[353992828,1740175859468,-500.0,0.00011856,2]
[353992829,1740175859478,-644.72,0.00011856,2]
[353992830,1740175859487,-500.0,0.00011856,2]
[353992831,1740175859496,-712.4,0.00011856,2]
[353992832,1740175859506,-649.39,0.00011856,2]
[353992833,1740175859515,-500.0,0.00011856,2]
[353992834,1740175859525,-1563.0,0.00011856,2]
[353992835,1740175859535,-500.0,0.00011856,2]
[353992836,1740175859544,-1053.07,0.00011856,2]
[353992837,1740175859553,-1338.11,0.00011856,2]
[353992838,1740175859563,-1204.61,0.00011856,2]
[353992839,1740175859573,-516.44,0.00011856,2]
[353992840,1740175859583,-524.75,0.00011856,2]
[353992841,1740175859593,-1032.03,0.00011856,2]
[353992842,1740175859605,-500.0,0.00011856,2]
[353992843,1740175859615,-500.0,0.00011856,2]
[353992844,1740175859625,-226.38028175,0.00011856,2]
[353992845,1740175859634,-500.0,0.00011856,2]
[353992846,1740175859643,-500.0,0.00011856,2]
[353992847,1740175859654,-768.2,0.00011856,2]
[353992848,1740175859663,-500.0,0.00011856,2]
[353992849,1740175859673,-785.25,0.00011856,2]
[353992850,1740175859685,-838.82,0.00011856,2]
[353992851,1740175859695,-1010.76,0.00011856,2]
[353992852,1740175859705,-2224.65,0.00011856,2]
[353992853,1740175859715,-500.0,0.00011856,2]
[353992854,1740175859724,-500.0,0.00011856,2]
[353992855,1740175859734,-500.0,0.00011856,2]
[353992856,1740175859744,-557.6,0.00011856,2]
[353992857,1740175859754,-500.0,0.00011856,2]
[353992858,1740175859763,-500.0,0.00011856,2]
[353992859,1740175859774,-500.0,0.00011856,2]
[353992860,1740175859783,-500.0,0.00011856,2]
[353992861,1740175859793,-150.0,0.00011892,2]
[353992862,1740175859802,-500.0,0.00011899,2]
[353992863,1740175859811,-1200.0,0.000119,4]
[353992864,1740175859821,-186.87,0.0001191,2]
[353992865,1740175859830,-150.0,0.00011916,2]
[353992866,1740175859840,-150.0,0.00011921,2]
[353992867,1740175859849,-150.0,0.00011923,2]
[353992868,1740175859859,-840.36,0.00011936,2]
[353992869,1740175859868,-550.99,0.00011936,2]
[353992870,1740175859877,-456.441457,0.00011936,2]
[353992871,1740175859887,-1301.04,0.00011936,2]
[353992872,1740175859895,-660.858377,0.00011936,2]
[353992873,1740175859905,-731.38,0.00011936,2]
[353992874,1740175859914,-150.0,0.00011936,2]
[353992875,1740175859923,-643.93,0.00011936,2]
[353992876,1740175859933,-770.4,0.00011936,2]
[353992877,1740175859942,-1037.35,0.00011936,2]
[353992878,1740175859952,-761.15,0.00011936,2]
[353992879,1740175859961,-694.42,0.00011936,2]
[353992880,1740175859970,-999.84,0.00011936,2]
[353992881,1740175859980,-2978.62,0.00011936,2]
[353992882,1740175859990,-531.77,0.00011936,2]
[353992883,1740175859999,-1077.31,0.00011936,2]
[353992884,1740175860008,-500.0,0.00011936,2]
[353992885,1740175860018,-999.03,0.00011936,2]
[353992886,1740175860028,-772.25,0.00011936,2]
[353992887,1740175860037,-687.87,0.00011936,2]
[353992888,1740175860047,-798.38,0.00011936,2]
[353992889,1740175860058,-1330.6,0.00011936,2]
[353992890,1740175860068,-580.79,0.00011936,2]
[353992891,1740175860078,-500.0,0.00011936,2]
[353992892,1740175860088,-1652.61,0.00011936,2]
[353992893,1740175860098,-584.29,0.00011936,2]
[353992894,1740175860110,-500.0,0.00011936,2]
[353992895,1740175860120,-1064.57,0.00011936,2]
[353992896,1740175860130,-1257.4,0.00011936,2]
[353992897,1740175860140,-617.67,0.00011936,2]
[353992898,1740175860150,-1008.78,0.00011936,2]
[353992899,1740175860160,-934.47,0.00011936,2]
[353992900,1740175860170,-607.43,0.00011936,2]
[353992901,1740175860180,-1149.16,0.00011936,2]
[353992902,1740175860190,-557.37,0.00011936,2]
[353992903,1740175860200,-500.0,0.00011936,2]
[353992904,1740175860210,-1059.67,0.00011936,2]
[353992905,1740175860220,-713.85,0.00011936,2]
[353992906,1740175860229,-619.22,0.00011936,2]
[353992907,1740175860239,-500.0,0.00011936,2]
[353992908,1740175860248,-500.0,0.00011936,2]
[353992909,1740175860258,-877.35,0.00011936,2]
[353992910,1740175860267,-1059.0,0.00011936,2]
[353992911,1740175860278,-1371.99,0.00011936,2]
[353992912,1740175860288,-1195.87,0.00011936,2]
[353992913,1740175860297,-500.0,0.00011936,2]
[353992914,1740175860307,-1159.59,0.00011936,2]
[353992915,1740175860317,-500.0,0.00011936,2]
[353992916,1740175860328,-716.76,0.00011936,2]
[353992917,1740175860337,-500.0,0.00011936,2]
[353992918,1740175860347,-471.15499814,0.00011936,2]
[353992919,1740175860357,-2524.55,0.00011936,2]
[353992920,1740175860367,-500.0,0.00011936,2]
[353992921,1740175860376,-339.95157131,0.00011937,2]
[353992922,1740175860386,-500.0,0.00011937,2]
[353992923,1740175860396,-500.0,0.00011937,2]
[353992924,1740175860406,-831.16,0.00011937,2]
[353992925,1740175860415,-672.19,0.00011937,2]
[353992926,1740175860425,-614.03,0.00011937,2]
[353992927,1740175860435,-233.04,0.00011937,2]
[353992928,1740175860444,-586.13,0.00011937,2]
[353992929,1740175860454,-500.0,0.00011937,2]
[353992930,1740175860463,-500.0,0.00011937,2]
[353992931,1740175860472,-500.0,0.00011937,2]
[353992932,1740175860482,-500.0,0.00011937,2]
[353992933,1740175860492,-500.0,0.00011937,2]
[353992934,1740175860501,-500.0,0.00011937,2]
[353992935,1740175860510,-500.0,0.00011937,2]
[353992936,1740175860520,-596.02,0.00011937,2]
[353992937,1740175860530,-907.74,0.00011937,2]
[353992938,1740175860540,-505.12,0.00011937,2]
[353992939,1740175860549,-500.0,0.00011937,2]
[353992940,1740175860559,-772.23,0.00011937,2]
[353992941,1740175860568,-633.15,0.00011937,2]
[353992942,1740175860578,-500.0,0.00011937,2]
[353992943,1740175860588,-1053.43,0.00011937,2]
[353992944,1740175860597,-500.0,0.00011937,2]
[353992945,1740175860608,-1338.15,0.00011937,2]
[353992946,1740175860622,-505.52,0.00011937,2]
[353992947,1740175860632,-640.1,0.00011937,2]
[353992948,1740175860642,-500.0,0.00011937,2]
[353992949,1740175860652,-500.0,0.00011938,2]
[353992950,1740175860662,-500.0,0.00011938,2]
[353992951,1740175860671,-500.0,0.00011938,2]
[353992952,1740175860681,-195.74,0.00011938,2]
[353992953,1740175860691,-500.0,0.00011938,2]
[353992954,1740175860701,-500.0,0.00011938,2]
[353992955,1740175860712,-500.0,0.00011938,2]
[353992956,1740175860722,-587.93,0.00011938,2]
[353992957,1740175860732,-546.63,0.00011938,2]
[353992958,1740175860742,-515.89,0.00011938,2]
[353992959,1740175860751,-579.03,0.00011938,2]
[353992960,1740175860761,-500.0,0.00011938,2]
[353992961,1740175860771,-500.0,0.00011938,2]
[353992962,1740175860780,-644.72,0.00011938,2]
[353992963,1740175860790,-500.0,0.00011938,2]
[353992964,1740175860799,-712.4,0.00011938,2]
[353992965,1740175860810,-649.39,0.00011938,2]
[353992966,1740175860819,-500.0,0.00011938,2]
[353992967,1740175860830,-1563.0,0.00011938,2]
[353992968,1740175860840,-500.0,0.00011938,2]
[353992969,1740175860850,-1053.07,0.00011938,2]
[353992970,1740175860860,-1338.11,0.00011938,2]
[353992971,1740175860870,-1204.61,0.00011938,2]
[353992972,1740175860880,-516.44,0.00011938,2]
[353992973,1740175860890,-524.75,0.00011938,2]
[353992974,1740175860900,-1032.03,0.00011938,2]
[353992975,1740175860910,-500.0,0.00011938,2]
[353992976,1740175860920,-500.0,0.00011938,2]
[353992977,1740175860930,-500.0,0.00011938,2]
[353992978,1740175860940,-500.0,0.00011938,2]
[353992979,1740175860951,-768.2,0.00011938,2]
[353992980,1740175860961,-500.0,0.00011938,2]
[353992981,1740175860971,-785.25,0.00011938,2]
[353992982,1740175860980,-838.82,0.00011938,2]
[353992983,1740175860990,-1010.76,0.00011938,2]
[353992984,1740175861000,-2224.65,0.00011938,2]
[353992985,1740175861010,-500.0,0.00011938,2]
[353992986,1740175861020,-176.78795297,0.00011938,2]
[353992987,1740175861029,-500.0,0.00011938,2]
[353992988,1740175861040,-557.6,0.00011938,2]
[353992989,1740175861050,-343.44,0.00011938,2]
[353992990,1740175861060,-500.0,0.00011938,2]
[353992991,1740175861070,-500.0,0.00011938,2]
[353992992,1740175861080,-500.0,0.00011938,2]
[353992993,1740175861090,-500.0,0.00011946,2]
[353992994,1740175861100,-760.4365,0.0001195,2]
[353992995,1740175861110,-1000.0,0.0001198,2]
[353992996,1740175861119,-150.0,0.00011991,2]
[353992997,1740175861129,-150.0,0.00011991,2]
[353992998,1740175861139,-600.0,0.00012,2]
[353992999,1740175861149,-150.0,0.00012011,2]
[353993000,1740175861158,-150.0,0.00012015,2]
[353993001,1740175861169,-1807.73577319,0.00012017,2]
[353993002,1740175861368,-1285.33763988,0.00012017,2]
[353993003,1740175861381,-641.03642135,0.00012017,2]
[353993004,1740175861599,-179.1165363,0.00012018,2]
[353993005,1740175861619,-358.35358244,0.00012018,2]
[353993006,1740175861630,-302.88988126,0.00012018,2]
[353993007,1740175861640,-550.99,0.00012018,2]
[353993008,1740175861651,-456.441457,0.00012018,2]
[353993009,1740175861661,-1301.04,0.00012018,2]
[353993010,1740175861670,-660.858377,0.00012018,2]
[353993011,1740175861680,-731.38,0.00012018,2]
[353993012,1740175861690,-643.93,0.00012018,2]
[353993013,1740175861700,-770.4,0.00012018,2]
[353993014,1740175861710,-1037.35,0.00012018,2]